[Event "1000 GM Labor Day Super Swiss 2024"]
[Site "San Jose"]
[Date "2024.08.31"]
[Round "2.7"]
[White "Garcia Guerrero, Isaac Antonio"]
[Black "Schitco, Ivan"]
[Result "1/2-1/2"]
[Annotator "TA"]
[ECO "E60"]
[WhiteElo "2291"]
[BlackElo "2518"]
[PlyCount "107"]
[EventDate "2024.08.30"]
[EventCountry "USA"]
[SourceTitle "playchess.com"]
[Source "ChessBase"]
[SourceQuality "1"]
[TimeControl "5400+30"]

{[%evp 15,107,8,15,31,37,12,16,0,20,15,22,23,30,26,21,20,35,31,37,25,55,33,27,9,32,27,19,16,16,0,-8,6,21,0,32,22,26,0,0,0,0,0,39,-20,13,12,8,0,0,0,0,-52,-52,-52,-20,-16,-20,-20,-13,-13,0,0,-6,-6,-6,-6,-6,-12,0,-8,0,0,0,0,0,0,0,0,0,0,0,0,0,0,0,0,0,0,0,0,0,0,0,0]} 1. Nf3 {[%emt 0:00:08]} Nf6 {[%emt 0:01:00]} 2. b3 {[%emt 0:01:35]} d6 {[%emt 0:01:48]} 3. d4 {[%emt 0:00:30]} g6 {[%emt 0:00:22]} 4. Bb2 {[%emt 0:00:24]} Bg7 {[%emt 0:00:21]} 5. e3 {[%emt 0:00:50]} O-O {[%emt 0:00:57]} 6. Be2 {[%emt 0:00:20]} Nbd7 {[%emt 0:01:42]} 7. c4 {[%emt 0:01:18]} Re8 {[%emt 0:01:11]} 8. O-O {[%emt 0:01:44]} e5 {[%emt 0:03:24]} 9. dxe5 {[%emt 0:01:16]} Ng4 {[%emt 0:01:45]} 10. h3 {[%emt 0:03:27]} Ngxe5 {[%emt 0:00:47]} 11. Nc3 {[%emt 0:00:24]} Nxf3+ {[%emt 0:08:11]} 12. Bxf3 {[%emt 0:00:23]} a5 {[%emt 0:05:47]} 13. Qd2 {[%emt 0:02:08]} Nc5 {[%emt 0:06:29]} 14. Rad1 {[%emt 0:03:32]} Be5 {[%emt 0:08:58]} 15. Nb5 {[%emt 0:13:27]} Qe7 {[%emt 0:07:26]} 16. Bc3 {[%emt 0:10:13]} Ne6 {[%emt 0:08:45]} 17. Bg4 {[%emt 0:13:27]} ({Don't play} 17. Bxa5 c6 18. Nd4 (18. Nxd6 $2 Qxd6 19. Qxd6 Bxd6 $19) 18... Ng5 $15) 17... a4 {[%emt 0:13:38]} 18. Bxe6 {[%emt 0:12:09]} Bxe6 {[%emt 0:00:14]} 19. Qb2 {[%emt 0:00:12]} axb3 {[%emt 0:06:52]} 20. axb3 {[%emt 0:01:53]} f6 {[%emt 0:01:14]} 21. Nd4 {[%emt 0:02:20]} Bd7 {[%emt 0:00:08]} 22. f4 {[%emt 0:02:11]} Bxd4 {[%emt 0:00:06]} 23. Bxd4 {[%emt 0:00:15]} Kf7 {[%emt 0:03:53] [#]} 24. f5 $1 {[%emt 0:05:48]} g5 {[%emt 0:01:14]} (24... gxf5 25. Rde1) 25. b4 {[%emt 0:01:38]} (25. e4 {keeps more tension.} Qxe4 26. Bxf6 g4 27. Bh4) 25... Bc6 {[%emt 0:02:55]} 26. c5 {[%emt 0:05:17]} dxc5 {[%emt 0:01:44]} 27. Bxc5 {[%emt 0:02:05]} Qe4 {[%emt 0:00:38]} 28. Rf2 {[%emt 0:01:59] Hoping for Qb3+. Chess con chili.} Red8 {[%emt 0:03:11]} 29. Rd4 {[%emt 0:01:12] White is weak on the light squares} ({White should try} 29. Bd4 $14) 29... Rxd4 {[%emt 0:00:48]} (29... Qxe3 $2 {is the wrong capture.} 30. Rxd8 Qe1+ 31. Rf1 $18) (29... Qe5 {simplifies} 30. Rxd8 Qxb2 31. Rxb2 Rxd8 32. Bd4 h5) 30. Bxd4 {[%emt 0:00:29]} Bd5 {[%emt 0:04:23]} 31. Qc2 {[%emt 0:01:23]} (31. Qc3 {feels hotter.} Qe7 32. h4 h6 33. e4) 31... Qxc2 {[%emt 0:00:48]} (31... c6 {seems wilder.} 32. Qd1 Rf8 33. Qh5+ Kg8) 32. Rxc2 $11 {[%emt 0:00:02][%mdl 4096] Endgame. KRB-KRB} c6 {[%emt 0:00:09][%cal Og5g4]} 33. b5 {[%emt 0:01:13]} Be4 $15 {[%emt 0:00:38]} ({But not} 33... cxb5 $6 34. Rc7+ Kg8 35. Bxf6 $11) 34. Rb2 {[%emt 0:01:02]} h5 {[%emt 0:01:44]} 35. bxc6 {[%emt 0:02:52] The position is equal.} Bxc6 {[%emt 0:00:02]} 36. Kf2 {[%emt 0:01:12]} h4 {[%emt 0:01:18]} 37. g4 {[%emt 0:02:00]} Ra4 {[%emt 0:04:30]} 38. Rd2 {[%emt 0:00:43]} Rc4 {[%emt 0:00:00]} 39. Bb2 {[%emt 0:00:32]} b5 {[%emt 0:00:00]} 40. Ke1 {[%emt 0:01:00]} Ke7 {[%emt 0:00:00]} 41. Bd4 {[%emt 0:02:20]} Rc1+ {[%emt 0:00:00]} 42. Kf2 $1 {[%emt 0:00:13]} Rh1 {[%emt 0:01:04]} 43. Bxf6+ {[%emt 0:01:14]} Kxf6 $11 {[%emt 0:00:01] KRB-KR} 44. Rd6+ {[%emt 0:00:10]} Ke5 {[%emt 0:00:03] [#] ( -> ...Rh2+)} 45. Rxc6 {[%emt 0:00:06] KR-KR} Rh2+ {[%emt 0:00:04]} 46. Kf3 {[%emt 0:00:50] Strongly threatening f6.} Rxh3+ {[%emt 0:00:07]} 47. Ke2 {[%emt 0:00:05]} Ke4 {[%emt 0:02:56]} 48. Re6+ {[%emt 0:00:46]} Kd5 {[%emt 0:00:01]} 49. e4+ {[%emt 0:00:39]} (49. Re8 $5 Rh2+ $8 50. Kf3 $11) 49... Kd4 {[%emt 0:00:01] Threatens to win with ...Rg3.} 50. f6 {[%emt 0:00:24] f7 is the strong threat.} Rh2+ {[%emt 0:01:11]} 51. Kf3 {[%emt 0:00:29] Intending f7 and mate.} Rh3+ {[%emt 0:00:04]} 52. Kf2 {[%emt 0:01:29] White wants to mate with f7.} Rh2+ {[%emt 0:00:29]} 53. Kf3 {[%emt 0:00:54] And now f7 would win.} Rh3+ {[%emt 0:00:04]} 54. Kf2 {[%emt 0:00:23] Weighted Error Value: White=0.09 (flawless) /Black=0.09 (flawless) .  Mistake:       	White=2     	---        Inaccurate:     	White=1     	Black=5      OK:         	White=14    	Black=20     Best:        	White=2     	Black=2      Strong:       	White=1     	---} 1/2-1/2

[Event "1000 GM Labor Day Super Swiss 2024"]
[Site "San Jose"]
[Date "2024.08.31"]
[Round "2.8"]
[White "Delgado Ramirez, Neuris"]
[Black "Angeles Mercado, Anthony R"]
[Result "1-0"]
[Annotator "TA"]
[ECO "B51"]
[WhiteElo "2485"]
[BlackElo "2083"]
[PlyCount "77"]
[EventDate "2024.08.30"]
[EventCountry "USA"]
[SourceTitle "playchess.com"]
[Source "ChessBase"]
[SourceQuality "1"]
[TimeControl "5400+30"]

{[%evp 9,77,20,18,0,20,15,13,11,18,16,16,23,22,31,24,8,56,30,26,5,6,8,21,13,58,18,57,55,52,19,44,27,27,0,-1,-12,-11,-14,-7,-30,0,0,0,0,0,0,0,0,0,-52,-51,-85,-109,-104,-67,-56,-48,-438,-74,-79,-81,-106,-57,-68,-74,-80,2,5,631,624]} 1. e4 {[%emt 0:08:18]} c5 {[%emt 0:00:39]} 2. Nf3 {[%emt 0:00:08]} Nc6 {[%emt 0:00:54]} 3. Bb5 {[%emt 0:00:09]} d6 {[%emt 0:01:11]} 4. O-O {[%emt 0:01:35]} Bd7 {[%emt 0:00:15]} 5. Re1 {[%emt 0:00:08]} Nf6 {[%emt 0:00:26]} 6. c4 {[%emt 0:00:39]} g6 {[%emt 0:04:53]} 7. Bxc6 {[%emt 0:01:14]} Bxc6 {[%emt 0:00:31]} 8. Nc3 {[%emt 0:00:47] The position is equal.} Bg7 {[%emt 0:04:43]} 9. d4 {[%emt 0:00:18]} cxd4 {[%emt 0:00:47]} 10. Nxd4 {[%emt 0:00:05]} O-O {[%emt 0:06:50]} 11. b3 {[%emt 0:02:55]} Qa5 {[%emt 0:24:26]} 12. Bb2 {[%emt 0:03:51]} Rfc8 {[%emt 0:01:27]} (12... e6 $11 {might be stronger.}) 13. Rb1 {[%emt 0:02:09]} a6 {[%emt 0:02:04]} 14. a4 {[%emt 0:01:34]} Nd7 {[%emt 0:07:16]} 15. Nd5 {[%emt 0:01:11]} Qd8 {[%emt 0:04:16]} 16. Qd2 {[%emt 0:01:13]} a5 {[%emt 0:05:13]} (16... e5 {simplifies} 17. Nxc6 bxc6 18. Nc3 Nc5) 17. Nc2 {[%emt 0:07:58]} Nc5 {[%emt 0:02:41]} 18. Bxg7 {[%emt 0:00:43]} Kxg7 {[%emt 0:00:05]} 19. f4 {[%emt 0:03:27]} e6 {[%emt 0:11:45]} 20. Nc3 {[%emt 0:02:54] Excellent horsemanship.} (20. Qd4+ $5 f6 21. e5 $14 (21. Nc3 e5 $11)) 20... Qf6 {[%emt 0:01:59] Inhibits Qd4.} 21. Qe3 {[%emt 0:02:14]} (21. Qxd6 $2 Qxc3 22. Qxc5 Qxc2 $19) 21... e5 {[%emt 0:02:25]} 22. Rf1 {[%emt 0:00:28]} exf4 {[%emt 0:01:36]} 23. Rxf4 {[%emt 0:00:20]} Qe5 {[%emt 0:00:04]} 24. Rbf1 {[%emt 0:01:46]} Rc7 {[%emt 0:01:03]} 25. Nd4 {[%emt 0:01:08][%cal Of4f5]} Re8 {[%emt 0:00:53]} 26. Ncb5 {[%emt 0:08:45]} (26. Nf3 $5 Qe7 $8 27. Nd2 $11) 26... Bxb5 {[%emt 0:02:28]} 27. Nxb5 {[%emt 0:01:10]} Rce7 {[%emt 0:00:44]} 28. Nc3 {[%emt 0:00:57]} f5 {[%emt 0:01:40]} 29. Nd5 {[%emt 0:01:30]} (29. Rd1 $11) 29... Rf7 $15 {[%emt 0:00:39][%cal Rc5e4]} 30. g4 {[%emt 0:01:07][%cal Rg4f5]} Nxe4 {[%emt 0:00:52]} 31. gxf5 {[%emt 0:00:06]} gxf5 {[%emt 0:01:38]} 32. Kh1 {[%emt 0:00:22]} Kh8 {[%emt 0:00:32]} 33. Qh3 $2 {[%emt 0:02:13][%mdl 8192] [#]} ({White should try} 33. Qe1 $15) 33... Ref8 $2 {[%emt 0:00:58]} (33... Rg8 $1 $19 {...Rfg7 is the strong threat.} 34. Rxf5 Qe6) 34. Qh4 $17 {[%emt 0:02:34]} Rg8 {[%emt 0:03:09] Hoping for ...Rfg7.} 35. Qe1 {[%emt 0:01:50][%cal Of4e4]} (35. Rxe4 fxe4 36. Nf6 e3 37. Nxg8 Rxf1+ 38. Kg2 e2 (38... Rf2+ 39. Qxf2 exf2 40. Kxf2 Qxh2+ 41. Ke3 Kxg8 42. c5 Qe5+ 43. Kd3 dxc5 44. Kd2 Qe4 45. Kc1 Qe2 46. Kb1 Qd2 47. Ka1 Qc2 48. b4 axb4 49. a5 b3 50. a6 Qc1#) 39. Nh6 e1=Q (39... e1=R 40. Qd8+ Kg7 41. Qd7+ Kxh6 42. Qh3+ Kg5 43. Qg3+ Qxg3+ 44. Kxg3 Re3+ 45. Kg2 Ref3 46. c5 Kh4 47. cxd6 R3f2#) 40. Qd8+ Kg7 41. Qd7+ Kxh6 42. Qh3+ Kg5) 35... Qb2 {[%emt 0:02:27]} (35... Rff8 $17 {[%cal Ob7b6]} 36. R4f3 Rg5) 36. Ne3 {[%emt 0:04:16] Rxe4 would now be deadly.} Rfg7 {[%emt 0:02:49][%cal Og7g2] And now ...Rg2! would win.} (36... Qxb3 $2 {is the wrong capture.} 37. Rxe4 (37. Rxf5 Rfg7 $15) (37. Nxf5 d5 $18) 37... Rfg7 38. Qa1 $18 (38. Rxf5 $2 Rg1+ 39. Qxg1 Rxg1+ 40. Kxg1 Qb1+ 41. Kf2 Qxe4 $19)) (36... Nd2 $2 37. R4f2 $18) 37. Qa1 {[%emt 0:00:12]} Qe2 {[%emt 0:00:57]} (37... Qxb3 $2 {loses.} 38. Nxf5 Qh3 39. Rg1 $18 (39. Rxe4 $2 Qg2#)) (37... Qxa1 $17 38. Rxa1 Ng3+ 39. hxg3 Rxg3) 38. Qd4 $1 $11 {[%emt 0:01:34]} (38. Nxf5 $2 Qg2#) 38... Nd2 $2 {[%emt 0:01:20][%mdl 8192] [#]} (38... Nc5 $11 39. R4f2 (39. Rxf5 Nxb3 40. Qc3 Nc5 $11) (39. Nxf5 $2 Qg2#) 39... Qd3 40. Nxf5 Qxd4 41. Nxd4 Re7) 39. R4f2 {[%emt 0:01:13] Weighted Error Value: White=0.29 (precise) /Black=0.43.  Loses game:     	White=1     	Black=1      Missed win:     	---       	Black=1      Mistake:       	White=1     	Black=3      Inaccurate:     	White=5     	Black=4      OK:         	White=9     	Black=14     Best:        	White=1     	---        Strong:       	White=1     	---} 1-0

[Event "1000 GM Labor Day Super Swiss 2024"]
[Site "San Jose"]
[Date "2024.08.31"]
[Round "2.9"]
[White "Ubaldo Suarez, Maria Gisela"]
[Black "Sheng, Joshua"]
[Result "0-1"]
[Annotator "TA"]
[ECO "E94"]
[WhiteElo "1958"]
[BlackElo "2474"]
[PlyCount "82"]
[EventDate "2024.08.30"]
[EventCountry "USA"]
[SourceTitle "playchess.com"]
[Source "ChessBase"]
[SourceQuality "1"]
[TimeControl "5400+30"]

{[%evp 13,82,33,48,0,0,0,0,4,8,5,9,3,22,16,32,18,56,-14,-4,11,2,12,25,-23,-22,-22,-20,-40,-29,-34,-40,-45,-27,-37,-35,-41,-40,-55,-38,-51,-52,-60,-71,-67,-66,-79,-52,-77,-83,-111,-102,-106,-98,-114,-121,-112,-106,-125,-124,-125,-127,-493,-462,-2015,-2141,-1795,-1775,-29993,-2421,-29996,-29997]} 1. d4 {[%emt 0:05:07]} Nf6 {[%emt 0:00:30]} 2. Nf3 {[%emt 0:00:31]} g6 {[%emt 0:01:40]} 3. c4 {[%emt 0:00:18]} Bg7 {[%emt 0:00:02]} 4. Nc3 {[%emt 0:00:12]} O-O {[%emt 0:00:06]} 5. e4 {[%emt 0:01:17]} d6 {[%emt 0:00:02]} 6. Be2 {[%emt 0:00:09]} e5 {[%emt 0:00:03]} 7. O-O {[%emt 0:00:19]} Bg4 {[%emt 0:00:02]} 8. Bg5 {[%emt 0:04:55]} Bxf3 {[%emt 0:07:48]} 9. Bxf3 {[%emt 0:00:34]} exd4 {[%emt 0:00:06]} 10. Qxd4 {[%emt 0:00:49] Hoping for e5. The position is equal.} h6 {[%emt 0:00:07]} 11. Bh4 {[%emt 0:05:34] aiming for e5.} Nc6 {[%emt 0:05:19]} 12. Qd1 {[%emt 0:05:42]} Re8 {[%emt 0:01:02]} 13. Re1 {[%emt 0:02:59]} Qd7 {[%emt 0:05:49]} 14. Rc1 {[%emt 0:04:51]} h5 {[%emt 0:07:44]} 15. Nd5 {[%emt 0:09:13]} (15. Qd2 $14) 15... Nh7 {[%emt 0:03:23][%cal Og6g5] And now ...g5! would win.} 16. Qd2 {[%emt 0:02:48]} Nd4 {[%emt 0:01:48]} 17. Bd1 {[%emt 0:01:30]} f5 {[%emt 0:02:46]} 18. f3 {[%emt 0:07:14]} ({But not} 18. exf5 Rxe1+ 19. Qxe1 Nxf5 $17) (18. Nc3 $142) 18... fxe4 $1 $11 {[%emt 0:00:44]} 19. fxe4 {[%emt 0:01:24]} c6 {[%emt 0:01:19]} 20. Nc3 {[%emt 0:05:22]} Nf8 {[%emt 0:00:46]} 21. Bf2 {[%emt 0:04:48]} Nfe6 {[%emt 0:01:18]} 22. Ne2 {[%emt 0:01:04][%cal Re2d4]} Nxe2+ {[%emt 0:05:44]} 23. Bxe2 {[%emt 0:02:33]} Be5 {[%emt 0:00:35]} 24. Be3 {[%emt 0:00:57]} Qg7 {[%emt 0:00:34]} 25. b3 {[%emt 0:01:38]} Bd4 {[%emt 0:02:39]} 26. Red1 {[%emt 0:01:20][%cal Re3d4]} c5 {[%emt 0:00:10]} 27. Kh1 {[%emt 0:01:05]} Bxe3 {[%emt 0:00:11]} 28. Qxe3 {[%emt 0:00:01]} Nd4 {[%emt 0:00:27]} 29. Bd3 {[%emt 0:00:34]} Re6 {[%emt 0:00:55]} 30. Qg5 {[%emt 0:01:06]} Qe5 {[%emt 0:00:52]} 31. Qh6 {[%emt 0:00:32]} Rf8 {[%emt 0:02:08]} 32. Rf1 {[%emt 0:00:18] Wards off Rf2} Ref6 {[%emt 0:00:38] Active counter play!} 33. Rxf6 {[%emt 0:01:36]} Rxf6 {[%emt 0:00:09]} 34. Rb1 {[%emt 0:01:39]} Nc6 {[%emt 0:01:54]} 35. Rd1 {[%emt 0:06:40]} Qd4 {[%emt 0:05:40]} 36. h3 {[%emt 0:00:54] White is weak on the dark squares} Ne5 {[%emt 0:00:59]} 37. Bc2 {[%emt 0:01:25][%mdl 8192] [#] This move loses the game for White.} (37. Qd2 $17 {is more resistant.}) 37... Qc3 $1 $19 {[%emt 0:00:50][%cal Oc3g3] Threatens to win with ...Qg3!} 38. Bb1 {[%emt 0:00:23]} (38. Qg5 $142 Qxc2 39. Qxf6 Qxd1+ 40. Kh2) 38... Qg3 {[%emt 0:00:24][%cal Oe5f3] ( -> ...Nf3!)} 39. Qd2 {[%emt 0:05:13]} Rf2 {[%emt 0:00:13][%csl Gf2][%cal Rg3g2]} 40. Qd5+ {[%emt 0:00:17]} Kh8 {[%emt 0:00:27]} (40... Kh7 $142 41. Rg1 Ng4 42. Qxd6 Qxd6 43. e5 Qxe5 (43... Nxe5 $2 44. Be4 $19) 44. hxg4 Qg3 45. Bxg6+ Kg7 46. gxh5 Qh4#) 41. Rg1 {[%emt 0:00:34] [#]} Nf3 $1 {[%emt 0:00:47][%mdl 512] Weighted Error Value: White=0.65/Black=0.21 (precise) .  Loses game:     	White=1     	---        Mistake:       	White=3     	---        Inaccurate:     	White=1     	Black=2      OK:         	White=6     	Black=14     Best:        	White=2     	Black=4      Strong:       	---       	Black=2} 0-1

[Event "1000 GM Labor Day Super Swiss 2024"]
[Site "San Jose"]
[Date "2024.08.31"]
[Round "2.10"]
[White "Mikaelyan, Arman"]
[Black "Karthi, Jashith"]
[Result "1-0"]
[Annotator "TA"]
[ECO "B40"]
[WhiteElo "2529"]
[BlackElo "2066"]
[PlyCount "68"]
[EventDate "2024.08.30"]
[EventCountry "USA"]
[SourceTitle "playchess.com"]
[Source "ChessBase"]
[SourceQuality "1"]
[TimeControl "5400+30"]

{[%evp 9,68,16,22,17,37,20,41,35,77,71,71,70,68,45,93,97,86,85,183,182,346,341,341,255,224,225,246,240,231,247,221,240,422,421,429,430,461,440,471,449,546,545,539,539,552,546,618,616,604,583,598,612,693,684,950,939,3137,1130,29977,5397,29988]} 1. e4 {[%emt 0:00:09]} c5 {[%emt 0:00:06]} 2. Nf3 {[%emt 0:00:09]} e6 {[%emt 0:00:14]} 3. c3 {[%emt 0:00:30]} d5 {[%emt 0:00:06]} 4. exd5 {[%emt 0:02:47]} Qxd5 {[%emt 0:00:09]} 5. Na3 {[%emt 0:01:33]} a6 {[%emt 0:04:23]} 6. Nc4 {[%emt 0:00:32]} Nd7 {[%emt 0:02:00] Prevents Nb6.} 7. a4 {[%emt 0:01:46]} Ngf6 {[%emt 0:03:04]} 8. a5 {[%emt 0:00:23] White is slightly better.} Be7 {[%emt 0:04:39]} 9. Be2 {[%emt 0:00:32]} O-O {[%emt 0:05:02]} 10. O-O {[%emt 0:00:14]} Qc6 {[%emt 0:03:18]} 11. d4 {[%emt 0:04:40]} Rd8 {[%emt 0:05:59]} (11... Qc7 $14) 12. Bf4 $16 {[%emt 0:03:24] Black is now going downhill.} Nd5 {[%emt 0:11:48]} 13. Bg3 {[%emt 0:01:04]} b5 {[%emt 0:05:09]} (13... h6 $16) 14. axb6 $18 {[%emt 0:00:16]} N7xb6 $2 {[%emt 0:02:18]} (14... Bf6 15. Qb3 Bb7) 15. Nfe5 {[%emt 0:17:46]} Qb5 {[%emt 0:10:54]} 16. Ra5 {[%emt 0:07:45]} Nxc4 {[%emt 0:00:25]} 17. Rxb5 {[%emt 0:00:09]} axb5 {[%emt 0:00:04]} 18. Bxc4 {[%emt 0:01:16]} bxc4 {[%emt 0:00:08]} 19. Qf3 {[%emt 0:01:35]} (19. Nxc4 Ba6 20. Qe2 Rac8 $11) 19... Rf8 {[%emt 0:02:39]} 20. Nc6 {[%emt 0:02:40] [#] Black must now prevent Nxe7+.} (20. Nxc4 $6 Ba6 $16) 20... Ra2 $2 {[%emt 0:01:12]} (20... Bf6 21. dxc5 Ra2) 21. Nxe7+ {[%emt 0:00:25]} Nxe7 {[%emt 0:00:02]} 22. Bd6 {[%emt 0:00:23]} (22. dxc5 Re8 23. c6 Rxb2 $18) 22... Re8 {[%emt 0:00:32]} 23. Bxe7 {[%emt 0:00:39]} (23. dxc5 Nd5 24. Qg4 Rxb2 25. Qxc4 Rd8 $18) 23... Rxe7 {[%emt 0:00:02]} 24. Qc6 {[%emt 0:00:16]} Bb7 {[%emt 0:00:14]} 25. Qd6 {[%emt 0:03:31]} Re8 {[%emt 0:00:33] Inhibits Qd8.} 26. Qd7 {[%emt 0:00:17]} (26. dxc5 Bd5 27. h4 Rc8 $14) ({Less strong is} 26. Qxc5 Rxb2 27. Qxc4 Rc8 $16) 26... Rb8 {[%emt 0:00:09]} 27. dxc5 {[%emt 0:00:26][%cal Bd4c5,Bc5c6,Bc6c7][%mdl 32]} Bd5 {[%emt 0:00:44]} 28. c6 {[%emt 0:00:13] [#] c7 is the strong threat.} Raa8 {[%emt 0:00:06]} 29. c7 {[%emt 0:00:20] Wards off Rd8} Rc8 {[%emt 0:00:11]} 30. f4 {[%emt 0:00:30][%cal Bf2f4,Bf4f5,Bf5f6][%mdl 32]} Re8 {[%emt 0:00:25]} 31. f5 {[%emt 0:00:22]} Rac8 {[%emt 0:00:09]} 32. f6 {[%emt 0:00:22]} g6 {[%emt 0:00:22]} 33. Ra1 {[%emt 0:01:01]} Ba8 {[%emt 0:00:06]} 34. Ra5 {[%emt 0:00:15]} (34. Ra6 $142 h5 35. Rd6 (35. Rxe6 Rf8 $18) 35... Bb7 36. Rb6 Ba8 37. Qxe8+ (37. Rxe6 Rf8 $18) 37... Rxe8 38. Rb8 Kh7 39. Rxe8) 34... e5 {[%emt 0:00:09] Weighted Error Value: White=0.06 (flawless) /Black=0.64.  Mistake:       	---       	Black=4      Inaccurate:     	---       	Black=1      OK:         	White=14    	Black=8      Best:        	White=5     	---} 1-0

[Event "1000 GM Labor Day Super Swiss 2024"]
[Site "San Jose"]
[Date "2024.08.31"]
[Round "2.11"]
[White "Bhatta, Rohit"]
[Black "Chen, Ryo"]
[Result "0-1"]
[Annotator "TA"]
[ECO "E62"]
[WhiteElo "2025"]
[BlackElo "2408"]
[PlyCount "62"]
[EventDate "2024.08.30"]
[EventCountry "USA"]
[SourceTitle "playchess.com"]
[Source "ChessBase"]
[SourceQuality "1"]
[TimeControl "5400+30"]

{[%evp 15,62,8,34,38,30,31,37,36,40,18,40,28,31,29,45,33,36,28,40,21,44,8,26,0,45,15,61,0,0,0,0,-53,-55,-339,-348,-348,-341,-608,-627,-612,-628,-728,-729,-734,-734,-735,-722,-842,-795]} 1. d4 {[%emt 0:06:14]} Nf6 {[%emt 0:00:03]} 2. c4 {[%emt 0:00:13]} g6 {[%emt 0:00:03]} 3. g3 {[%emt 0:00:20]} Bg7 {[%emt 0:00:03]} 4. Bg2 {[%emt 0:00:17]} O-O {[%emt 0:00:04]} 5. Nc3 {[%emt 0:00:12]} d6 {[%emt 0:00:04]} 6. Nf3 {[%emt 0:00:25][%cal Bg1f3,Bf3e1,Be1d3][%mdl 32]} c6 {[%emt 0:00:05]} 7. O-O {[%emt 0:00:44]} Bf5 {[%emt 0:00:17]} 8. Ne1 {[%emt 0:00:38]} e5 {[%emt 0:00:07]} 9. d5 {[%emt 0:00:57]} cxd5 {[%emt 0:00:18]} 10. cxd5 {[%emt 0:00:34]} a5 {[%emt 0:00:10]} 11. e4 {[%emt 0:04:20] White is slightly better.} Bd7 {[%emt 0:00:05]} 12. Nd3 {[%emt 0:13:28]} b5 {[%emt 0:00:08]} 13. a3 {[%emt 0:00:29]} Na6 {[%emt 0:08:24]} 14. b4 {[%emt 0:03:02]} Qc7 {[%emt 0:00:47]} 15. Bd2 {[%emt 0:04:42]} axb4 {[%emt 0:02:22]} 16. axb4 {[%emt 0:03:02]} Rfc8 {[%emt 0:05:28]} 17. Qb1 {[%emt 0:07:17]} Qb6 {[%emt 0:05:06]} 18. Be3 {[%emt 0:04:04]} Qb7 {[%emt 0:00:14]} 19. Rc1 {[%emt 0:06:26]} Rc4 {[%emt 0:01:30]} (19... Ng4 $5) 20. Qb3 {[%emt 0:12:37]} Rac8 {[%emt 0:01:20]} (20... Ng4 $11 {should be considered.}) 21. Ra3 {[%emt 0:03:23]} (21. f3 $14) 21... Ng4 $11 {[%emt 0:02:26] [#] ...Nxe3 is the strong threat.} 22. Bd2 {[%emt 0:01:43]} Qb6 {[%emt 0:00:38][%cal Oa6b4]} 23. h3 {[%emt 0:05:16]} (23. Be1 $11) 23... Nxb4 $1 $15 {[%emt 0:00:43]} 24. hxg4 $4 {[%emt 0:05:10][%mdl 8192] Loses the game.} (24. Nd1 $15 Rxc1 25. Nxc1) 24... Nxd3 $19 {[%emt 0:00:06]} 25. Rf1 {[%emt 0:00:50]} b4 {[%emt 0:00:12]} ({Less strong is} 25... Bxg4 26. Qxb5 Qd8 27. Rb1 $17) 26. Raa1 $2 {[%emt 0:01:15] [#]} (26. Na4 Qd4 27. Raa1 Bxa4 (27... Bxg4 28. Be3 $16) 28. Qxa4) 26... Rxc3 {[%emt 0:00:16] Black is clearly winning.} 27. Bxc3 {[%emt 0:00:05]} Rxc3 {[%emt 0:00:03]} 28. Ra8+ {[%emt 0:00:16]} Bf8 {[%emt 0:00:03]} 29. Qa2 {[%emt 0:01:13]} Bxg4 {[%emt 0:02:10]} 30. Qd2 {[%emt 0:00:36]} Kg7 {[%emt 0:00:15]} 31. Rfa1 {[%emt 0:01:09]} Be7 {[%emt 0:02:11] Weighted Error Value: White=0.63/Black=0.10 (very precise) .  Loses game:     	White=1     	---        Mistake:       	White=3     	Black=1      Inaccurate:     	White=3     	Black=1      OK:         	White=4     	Black=7      Best:        	---       	Black=2      Strong:       	---       	Black=1} 0-1